bitfinex-derivatives/quotes_ETHF0:USTF0_20250627
["timestamp","ask_amount","ask_price","bid_price","bid_amount"]
[1750985088611,0.83016,2408.1,2408.0,1.3765]
[1750985089215,4.03794,2408.2,2408.0,1.3765]
[1750985090312,3.2078,2408.2,2408.0,1.3765]
[1750985090616,3.2078,2408.2,2408.1,0.83016]
[1750985090811,3.2078,2408.2,2408.1,1.52616]
[1750985091011,1.5052,2408.6,2408.2,0.83011]
[1750985091215,1.77625605,2408.5,2408.3,1.4058]
[1750985091412,0.94623605,2408.4,2408.3,1.4058]
[1750985092517,0.94623605,2408.4,2408.3,2.23589]
[1750985092819,3.2078,2409.0,2408.3,15.51601]
[1750985093113,6.37230604,2409.4,2409.0,0.82985]
[1750985093311,0.94702631,2409.3,2409.1,9.1952]
[1750985093512,0.94702631,2409.2,2409.1,9.1952]
[1750985093907,0.94702631,2409.2,2409.1,10.02501]
[1750985094326,0.94702631,2409.2,2409.1,9.1952]
[1750985094621,3.2078,2409.4,2409.2,0.82977]
[1750985094817,0.6821,2409.8,2409.4,0.82969]
[1750985095117,0.6821,2409.8,2409.3,32.79318235]
[1750985095118,0.9474634,2409.7,2409.5,9.34048]
[1750985095314,4.03736,2409.9,2409.5,8.5108]
[1750985095614,0.94691311,2409.8,2409.5,8.5108]
[1750985095816,0.94691311,2409.7,2409.5,8.5108]
[1750985096121,1.77655311,2409.6,2409.5,8.5108]
[1750985096918,0.82964,2409.6,2409.5,8.5108]
[1750985097407,3.2078,2409.9,2409.2,3.2078]
[1750985097608,0.82966,2409.6,2409.3,7.034]
[1750985097906,0.82968,2409.5,2409.3,8.4046]
[1750985098111,0.8298,2409.2,2409.0,7.034]
[1750985098311,0.82991,2408.9,2408.7,2.0367]
[1750985098514,0.82991,2408.9,2408.8,7.033]
[1750985098710,1.53676,2409.0,2408.8,7.033]
[1750985098911,0.7069,2409.0,2408.8,7.033]
[1750985099220,0.82988,2408.9,2408.8,8.4036]
[1750985100117,0.83001,2408.6,2408.5,7.033]
[1750985100915,0.83002,2408.5,2408.4,49.819]
[1750985101121,3.2078,2408.6,2408.3,7.033]
[1750985101314,0.83005,2408.4,2408.3,7.033]
[1750985102809,0.83016,2408.1,2408.0,2.1968]
[1750985103019,0.83016,2408.1,2408.0,7.033]
[1750985103721,0.83026,2407.8,2407.7,99.63687447]
[1750985103921,0.83026,2407.8,2407.7,130.36798235]
[1750985104222,0.83026,2407.8,2407.7,84.4346]
[1750985105022,4.03806,2407.8,2407.7,84.4346]
[1750985105621,0.83021,2408.0,2407.7,84.4346]
[1750985106121,3.2078,2408.2,2407.7,84.4346]
[1750985106818,0.83023,2407.9,2407.7,84.4346]
[1750985107020,0.83026,2407.8,2407.7,84.4346]
[1750985108325,0.83033,2407.6,2407.5,42.1562]
[1750985108621,0.83032,2407.7,2407.5,33.186]
[1750985109426,0.83021,2408.0,2407.6,4.6696]
[1750985109727,0.6799,2408.1,2407.6,1.4618]
[1750985109728,0.83027,2407.8,2407.6,1.4618]
[1750985109925,0.83021,2408.0,2407.6,4.6696]
[1750985110122,0.83024,2407.9,2407.6,4.6696]
[1750985110429,0.6799,2408.1,2407.6,5.49993]
[1750985110430,0.83021,2408.0,2407.6,5.49993]
[1750985111018,0.6799,2408.1,2407.6,4.6696]
[1750985111426,3.2078,2408.5,2408.0,3.2078]
[1750985111622,3.2078,2408.5,2408.1,39.64428235]
[1750985111925,3.2078,2408.5,2408.4,5.12838235]
[1750985112125,2.20028,2408.9,2408.4,39.46118235]
[1750985112317,1.3704,2408.9,2408.5,9.23091]
[1750985112630,3.2078,2408.9,2408.5,8.4009]
[1750985112822,3.2078,2408.9,2408.5,9.0714]
[1750985113030,0.82983,2409.1,2408.7,5.12838235]
[1750985113226,0.82983,2409.1,2408.8,27.4959]
[1750985113428,4.5782,2409.3,2408.8,27.4959]
[1750985113632,0.82986,2409.0,2408.8,27.4959]
[1750985113832,0.82986,2409.0,2408.9,7.038]
[1750985114329,0.82983,2409.1,2408.9,7.038]
[1750985114532,0.82985,2409.0,2408.9,8.3999]
[1750985115429,0.82982,2409.1,2408.9,8.3999]
[1750985115634,0.82985,2409.0,2408.9,8.3999]
[1750985118230,0.82983,2409.1,2408.9,8.3999]
[1750985118430,4.5782,2409.3,2408.9,8.3999]
[1750985118623,4.5782,2409.3,2409.0,5.12838235]
[1750985118624,3.2078,2409.3,2409.0,5.12838235]
[1750985118830,3.2078,2409.6,2409.2,0.82976]
[1750985119033,3.2078,2409.6,2409.3,13.54228235]
[1750985119333,3.2078,2409.6,2409.4,26.086]
[1750985119631,4.03744,2409.6,2409.5,1.3759]
[1750985119834,3.2078,2409.6,2409.5,1.3759]
[1750985120029,3.2078,2409.6,2409.5,2.0683]
[1750985120331,4.03744,2409.6,2409.5,2.7553]
[1750985121126,3.2078,2409.6,2409.5,2.7553]
[1750985121635,0.82957,2409.9,2409.5,2.7553]
[1750985122331,0.82958,2409.8,2409.5,2.7553]
[1750985122533,0.82964,2409.6,2409.5,2.7553]
[1750985122835,0.82964,2409.6,2409.5,34.4939]
[1750985124138,3.2078,2409.8,2409.1,4.613]
[1750985124436,0.82974,2409.4,2409.2,34.5209]
[1750985124642,0.82974,2409.3,2409.2,1.4199]
[1750985124940,0.82974,2409.3,2409.2,33.106]
[1750985126231,0.82974,2409.3,2409.1,0.7283]
[1750985126429,0.82974,2409.3,2409.2,33.095]
[1750985127340,0.82978,2409.2,2409.1,33.095]
[1750985127838,0.82985,2409.0,2408.9,1.4199]
[1750985128033,0.82985,2409.0,2408.9,34.5109]
[1750985128441,0.82985,2409.0,2408.9,34.5079]
[1750985129243,0.82985,2409.0,2408.9,33.085]
[1750985129944,0.82983,2409.1,2408.9,33.085]
[1750985130142,0.82983,2409.1,2408.9,34.5459]
[1750985130534,0.7072,2409.3,2408.9,34.5459]
[1750985130535,0.82985,2409.0,2408.9,34.5459]
[1750985130736,0.82985,2409.0,2408.9,33.085]
[1750985133641,0.82988,2408.9,2408.8,10.2438]
[1750985133939,4.03768,2408.9,2408.8,33.039]
[1750985134641,0.82988,2408.9,2408.8,33.039]
[1750985134833,4.03768,2408.9,2408.8,33.039]
[1750985136230,0.82988,2408.9,2408.8,33.039]
[1750985137442,3.925,2409.2,2408.8,33.86891]
[1750985137443,0.82983,2409.1,2408.8,33.86891]
[1750985137638,3.2078,2409.2,2408.9,2.17567]
[1750985137845,2.46840604,2409.8,2409.0,31.11438235]
[1750985137846,3.2078,2409.5,2409.0,31.11438235]
[1750985138045,0.95029575,2409.4,2409.2,4.03755]
[1750985138245,1.51266,2409.6,2409.3,27.3378]
[1750985138446,0.95059955,2409.5,2409.3,27.3378]
[1750985138646,0.95059955,2409.4,2409.3,27.3378]
[1750985138841,0.95059955,2409.4,2409.3,32.46618235]
[1750985139144,0.82961,2409.7,2409.3,32.46618235]
[1750985139346,0.95143871,2409.6,2409.4,0.7348]
[1750985139547,4.03739,2409.8,2409.5,27.4598]
[1750985139749,0.95143507,2409.7,2409.5,27.4598]
[1750985139942,0.95143507,2409.6,2409.5,27.4598]
[1750985140140,4.03739,2409.8,2409.5,27.4598]
[1750985140450,0.95221065,2409.7,2409.5,27.4598]
[1750985140654,4.03737,2409.8,2409.5,28.1859]
[1750985140852,0.95270299,2409.7,2409.5,28.1859]
[1750985141047,3.2078,2409.8,2409.6,7.76962]
[1750985141350,3.2078,2409.8,2409.7,27.4508]
[1750985141548,4.16137822,2409.8,2409.7,27.4508]
[1750985142148,4.16137822,2409.8,2409.7,28.28041]
[1750985142343,4.16137822,2409.8,2409.7,27.4508]
[1750985143255,0.95357822,2409.8,2409.7,27.4508]
[1750985143548,0.95357822,2409.8,2409.7,28.28041]
[1750985143949,3.2078,2410.1,2409.7,27.4508]
[1750985144156,3.17860604,2410.4,2409.7,27.4508]
[1750985144157,0.95370568,2410.0,2409.8,1.3393]
[1750985144357,0.95370568,2409.9,2409.8,2.16885]
[1750985144548,0.95370568,2409.9,2409.8,28.12485]
[1750985144747,0.95370568,2409.9,2409.8,31.33265]
[1750985144962,0.7102,2410.4,2410.1,0.82944]
[1750985145153,0.95285843,2410.3,2410.2,27.3822]
[1750985145559,0.95285843,2410.3,2410.2,26.78143]
[1750985145956,0.95285843,2410.3,2410.2,28.94053]
[1750985146458,0.95285843,2410.3,2410.2,28.1111]
[1750985146756,0.95285843,2410.3,2410.2,25.952]
[1750985147460,0.95285843,2410.3,2410.2,27.3822]
[1750985148654,0.95285843,2410.3,2410.2,28.21163]
[1750985149167,0.95285843,2410.3,2410.2,27.3822]
[1750985150469,0.95285843,2410.3,2410.2,28.21163]
[1750985150858,3.2078,2410.5,2410.2,28.21163]
[1750985151060,0.95169822,2410.4,2410.3,1.3814]
[1750985152172,4.03713,2410.5,2410.3,1.3814]
[1750985152373,4.03713,2410.5,2410.4,25.893]
[1750985152671,4.98833975,2410.5,2410.4,25.893]
[1750985152855,0.8294,2410.4,2410.0,40.8]
[1750985153059,0.82943,2410.3,2410.1,32.822]
[1750985153267,3.2078,2410.5,2410.1,32.822]
[1750985153268,1.52829,2410.4,2410.1,32.822]
[1750985153467,0.8294,2410.3,2410.1,32.822]
[1750985154871,1.52829,2410.4,2410.1,32.822]
[1750985155068,0.8294,2410.3,2410.1,32.822]
[1750985155267,0.8294,2410.3,2410.1,34.2377]
[1750985156274,0.82943,2410.2,2410.1,1.4157]
[1750985156565,0.82943,2410.2,2410.1,32.8]
[1750985156761,3.2078,2410.2,2410.1,6.938]
[1750985156959,4.03723,2410.2,2410.1,32.795]
[1750985157873,3.2078,2410.2,2409.6,2.8017]
[1750985158070,0.82955,2409.9,2409.7,6.938]
[1750985158370,0.82955,2409.9,2409.8,25.855]
[1750985159074,0.82952,2410.0,2409.8,25.855]
[1750985159371,0.82954,2409.9,2409.8,25.855]
[1750985160167,2.28768,2410.1,2409.8,25.855]
[1750985160367,0.82948,2410.1,2409.8,26.68456]
[1750985160565,0.8295,2410.0,2409.8,25.855]
[1750985161270,3.2078,2410.2,2409.8,25.855]
[1750985161467,0.82947,2410.1,2409.8,25.855]
[1750985161972,4.03725,2410.2,2409.8,26.68457]
[1750985162273,3.2078,2410.2,2409.8,27.2917]
[1750985162472,0.82954,2409.9,2409.7,6.938]
[1750985162672,0.82966,2409.6,2409.2,3.2078]
[1750985162866,0.6814,2409.5,2409.2,3.2078]
[1750985163067,0.82974,2409.3,2409.2,3.2078]
[1750985163268,0.82973,2409.4,2409.2,3.2078]
[1750985163573,0.6814,2409.5,2409.2,3.2078]
[1750985163776,0.82972,2409.4,2409.2,3.2078]
[1750985164079,0.82971,2409.4,2409.2,3.2078]
[1750985164978,0.82971,2409.4,2409.0,6.836]
[1750985164979,0.8298,2409.2,2409.0,6.836]
[1750985165175,4.6601,2409.4,2409.0,10.15071212]
[1750985165176,3.2078,2409.4,2409.0,10.15071212]
[1750985165575,4.03752,2409.4,2409.1,27.3368]
[1750985165776,4.03752,2409.4,2409.1,28.16661]
[1750985165777,3.2078,2409.4,2409.1,28.16661]
[1750985165970,3.2078,2409.4,2409.1,27.3368]
[1750985166275,3.2078,2409.4,2409.1,29.82169212]
[1750985166474,4.03752,2409.4,2409.1,29.82169212]
[1750985167877,3.2078,2409.4,2409.1,29.82169212]
[1750985168175,3.2078,2409.4,2409.2,2.48489212]
[1750985168376,4.03752,2409.4,2409.2,2.48489212]
[1750985168579,0.82974,2409.3,2409.2,2.48489212]
[1750985169279,0.82974,2409.3,2409.1,28.35789212]
[1750985169577,4.03753,2409.4,2409.1,25.873]
[1750985169778,4.03753,2409.4,2409.1,27.2796]
[1750985170281,0.82974,2409.3,2409.1,27.2796]
[1750985170481,4.03753,2409.4,2409.1,27.2796]
[1750985170675,0.95476179,2409.3,2409.1,27.2796]
[1750985170876,4.03753,2409.4,2409.1,27.2796]
[1750985171173,0.95476028,2409.3,2409.1,27.2796]
[1750985171373,3.2078,2409.8,2409.3,5.12838235]
[1750985171574,0.95565388,2409.7,2409.6,5.95800235]
[1750985171778,0.95565388,2409.7,2409.6,30.97538235]
[1750985171981,0.95565388,2409.7,2409.6,25.847]
[1750985172184,0.95565388,2409.7,2409.6,27.2536]
[1750985173583,0.95565388,2409.7,2409.6,28.08324]
[1750985174077,3.2078,2410.1,2409.6,28.08324]
[1750985174284,0.95556412,2410.0,2409.6,28.08324]
[1750985174471,0.95556412,2409.9,2409.6,28.08324]
[1750985175582,0.95556412,2409.9,2409.8,0.82957]
[1750985175778,0.6936,2410.3,2409.9,0.82951]
[1750985176086,0.9554987,2410.2,2410.0,25.823]
[1750985176378,0.6936,2410.3,2410.0,25.823]
[1750985176379,0.82947,2410.1,2410.0,25.823]
[1750985176580,1.78493775,2410.1,2410.0,25.823]
[1750985176776,0.95546775,2410.1,2410.0,25.823]
[1750985177186,0.95546775,2410.1,2410.0,27.2149]
[1750985177486,1.78493775,2410.1,2410.0,27.2149]
[1750985177787,0.95546775,2410.1,2410.0,27.2149]
[1750985180587,0.95546775,2410.1,2410.0,28.0444]
[1750985180789,0.95546775,2410.1,2410.0,27.2149]
[1750985181791,0.95546775,2410.1,2410.0,28.0444]
[1750985181988,0.95546775,2410.1,2410.0,27.2149]
[1750985182390,1.52302,2410.3,2410.0,27.2149]
[1750985182592,0.95509789,2410.2,2410.0,27.2149]
[1750985182886,1.52302,2410.3,2410.0,27.2149]
[1750985183090,0.95509307,2410.2,2410.0,27.2149]
[1750985183394,1.52302,2410.3,2410.0,27.2149]
[1750985183592,0.95510297,2410.2,2410.0,27.2149]
[1750985183892,0.6936,2410.3,2410.0,28.0444]
[1750985184084,0.95491965,2410.2,2410.0,27.2149]
[1750985184286,0.82944,2410.2,2410.0,27.2149]
[1750985184487,1.52302,2410.3,2410.0,27.2149]
[1750985184796,0.95497478,2410.2,2410.0,27.2149]
[1750985184995,0.6936,2410.3,2410.0,27.2149]
[1750985185198,0.95497409,2410.2,2410.0,27.2149]
[1750985185499,4.03719,2410.4,2410.2,0.82942]
[1750985185500,3.2078,2410.4,2410.2,0.82942]
[1750985185688,3.2078,2410.4,2410.3,1.3745]
[1750985185888,4.16281183,2410.4,2410.3,1.3745]
[1750985187999,4.16281183,2410.4,2410.2,6.836]
[1750985188295,0.95501183,2410.3,2410.2,6.836]
[1750985188495,0.95501183,2410.3,2410.2,8.2607]
[1750985189594,0.95501183,2410.3,2410.2,9.09013]
[1750985191793,0.727,2410.6,2410.2,9.09013]
[1750985191998,0.95500684,2410.5,2410.3,28.6398]
[1750985192298,0.95500684,2410.4,2410.3,28.6398]
[1750985192490,0.727,2410.6,2410.3,28.6398]
[1750985192691,0.95502911,2410.5,2410.3,28.6398]
[1750985192885,0.727,2410.6,2410.3,28.6398]
[1750985193090,0.95504541,2410.5,2410.3,28.6398]
[1750985193293,3.9157,2410.7,2410.3,32.93878235]
[1750985193493,0.95493153,2410.6,2410.5,0.82933]
[1750985193697,0.95493153,2410.6,2410.5,2.17963]
[1750985194094,0.95493153,2410.6,2410.5,1.3503]
[1750985197199,0.95493153,2410.6,2410.5,2.17963]
[1750985197402,0.95493153,2410.6,2410.5,1.3503]
[1750985197696,0.95493153,2410.6,2410.5,2.17963]
[1750985197902,0.95493153,2410.6,2410.5,1.3503]
[1750985198302,0.95493153,2410.6,2410.5,2.17963]
[1750985199007,0.95493153,2410.6,2410.5,1.3503]
[1750985199497,3.2078,2410.7,2410.5,2.17963]
[1750985199697,3.2078,2410.7,2410.6,6.764]
[1750985199896,4.16153209,2410.7,2410.6,8.226]
[1750985200502,4.16153209,2410.7,2410.6,9.0553]
[1750985202202,4.16153209,2410.7,2410.6,34.7313]
[1750985202399,0.95373209,2410.7,2410.6,34.7313]
[1750985202808,0.7011,2410.9,2410.6,34.7313]
[1750985203004,0.9572859,2410.8,2410.7,2.72512712]
[1750985203203,0.9572859,2410.8,2410.7,3.55438712]
[1750985203414,0.9572859,2410.8,2410.7,4.28978712]
[1750985203701,3.2078,2411.0,2410.9,0.82919]
[1750985203904,3.2078,2411.3,2411.0,0.82915]
[1750985204204,3.2078,2411.3,2411.2,2.72512712]
[1750985204609,3.2078,2411.3,2411.1,6.764]
[1750985204610,0.82911,2411.2,2411.1,6.764]
[1750985204798,0.82911,2411.2,2410.8,6.764]
[1750985204799,3.46132712,2411.2,2410.8,6.764]
[1750985205004,3.2078,2411.0,2410.4,0.7354]
[1750985205306,3.2078,2411.0,2410.2,96.51392712]
[1750985205307,0.82928,2410.7,2410.5,32.453]
[1750985205499,0.6785,2410.6,2410.5,32.453]
[1750985205701,3.2078,2411.0,2410.5,36.00745712]
[1750985205899,3.2078,2411.0,2410.5,35.17812712]
[1750985205900,1.50774,2410.8,2410.5,35.17812712]
[1750985206100,0.6785,2410.8,2410.5,36.00745712]
[1750985206504,0.6785,2410.8,2410.7,3.55438712]
[1750985207302,0.7276,2411.1,2410.8,0.82922]
[1750985207503,2.23523,2411.1,2410.7,3.55436712]
[1750985207707,4.03696,2411.0,2410.7,2.72512712]
[1750985207907,1.4061,2411.1,2410.7,2.72512712]
[1750985208103,1.4061,2411.1,2410.9,2.72512712]
[1750985208300,1.4061,2411.1,2410.8,1.355]
[1750985208501,4.03698,2411.0,2410.6,6.66197513]
[1750985208708,3.2078,2411.0,2410.6,8.01697513]
[1750985209103,2.23525,2411.1,2410.7,0.82926]
[1750985209307,2.23525,2411.1,2410.7,2.26856]
[1750985211010,1.4061,2411.1,2410.7,1.4393]
[1750985211206,4.03701,2410.9,2410.5,33.28232]
[1750985212010,3.2078,2410.9,2410.5,32.453]
[1750985212413,4.03701,2410.9,2410.5,33.2823]
[1750985212914,0.82924,2410.8,2410.5,32.437]
[1750985213114,2.25144,2410.8,2410.5,32.437]
[1750985213315,0.696,2410.7,2410.5,32.437]
[1750985213614,0.6957,2410.6,2410.5,32.437]
[1750985213812,3.9035,2410.6,2410.5,32.437]
[1750985216213,0.6957,2410.6,2410.5,32.437]
[1750985217317,0.6957,2410.6,2410.5,33.26633]
[1750985219018,0.696,2410.7,2410.6,0.8293]
[1750985219514,1.64957408,2410.7,2410.6,0.8293]
[1750985219711,1.64957408,2410.7,2410.5,33.26631]
[1750985220017,0.696,2410.7,2410.5,33.26631]
[1750985221718,0.696,2410.7,2410.6,0.8293]
[1750985221906,1.64990313,2410.7,2410.6,0.8293]
[1750985222113,1.64990313,2410.7,2410.6,2.2056]
[1750985222515,0.95390313,2410.7,2410.6,2.2056]
[1750985222820,3.2078,2411.0,2410.9,0.82919]
[1750985223117,4.16191778,2411.0,2410.9,38.41468513]
[1750985223519,0.95411778,2411.0,2410.9,38.41468513]
[1750985224116,0.95411778,2411.0,2410.9,39.79098513]
[1750985224923,0.95411778,2411.0,2410.9,42.99878513]
[1750985225719,0.7222,2411.4,2411.1,0.8291]
[1750985225930,0.95404385,2411.3,2411.2,25.669]
[1750985226113,0.95404385,2411.3,2411.2,33.24509]
[1750985227123,0.95404385,2411.3,2411.2,32.416]
[1750985227317,0.95404385,2411.3,2411.2,33.24509]
[1750985228420,0.95404385,2411.3,2411.2,35.96865102]
[1750985230416,0.95404385,2411.3,2411.2,39.17645102]
[1750985231919,0.95404385,2411.3,2411.2,38.34736102]
[1750985232119,0.95404385,2411.3,2411.2,35.13956102]
[1750985232625,0.95404385,2411.3,2411.2,35.96865102]
[1750985232827,0.95404385,2411.3,2411.2,35.96465102]
[1750985233825,0.6652,2411.8,2411.2,38.34336102]
[1750985234128,0.95374134,2411.7,2411.5,3.55253102]
[1750985234421,0.6652,2411.8,2411.6,32.41]
[1750985234617,0.95350261,2411.7,2411.6,32.41]
[1750985236129,0.95350261,2411.7,2411.6,33.23895]
[1750985236426,0.95350261,2411.7,2411.6,33.7686]
[1750985236827,0.95350261,2411.7,2411.6,34.59755]
[1750985237130,0.95350261,2411.7,2411.6,33.7686]
[1750985240129,0.95350261,2411.7,2411.6,34.59755]
[1750985240430,1.78242261,2411.7,2411.6,32.41]
[1750985242229,3.22302261,2411.7,2411.6,32.41]
[1750985249140,5.11766363,2411.7,2411.4,25.657]
[1750985249338,0.82902,2411.4,2411.3,32.401]
[1750985249738,2.26372,2411.4,2411.3,32.401]
[1750985249941,3.21598585,2411.4,2411.3,32.401]
[1750985252237,10.11052687,2411.4,2410.8,5.69269212]
[1750985252438,3.2078,2411.2,2410.8,12.43769212]
[1750985252731,0.82916,2411.0,2410.9,25.655]
[1750985253544,0.82916,2411.0,2410.8,6.745]
[1750985253741,0.82916,2411.0,2410.9,25.655]
[1750985254441,4.6275,2411.2,2410.8,6.745]
[1750985254442,0.82919,2410.9,2410.8,6.745]
[1750985254743,4.03699,2410.9,2410.8,32.399]
[1750985255745,4.73449,2410.9,2410.8,32.401]
[1750985256144,11.62886102,2410.9,2410.2,52.50456102]
[1750985256347,0.82933,2410.5,2410.4,32.395]
[1750985256740,4.03712,2410.6,2410.4,32.395]
[1750985257640,4.03712,2410.6,2410.4,6.74]
[1750985257846,3.2078,2410.6,2410.5,25.655]
[1750985258043,0.82924,2410.8,2410.5,25.655]
[1750985258345,0.82926,2410.7,2410.6,2.72356102]
[1750985259648,0.8293,2410.6,2410.5,25.655]
[1750985259843,3.9053,2410.9,2410.6,0.8293]
[1750985260040,3.9053,2410.9,2410.8,2.72356102]
[1750985260640,4.73449,2410.9,2410.8,2.72356102]
[1750985261350,0.82926,2410.7,2410.6,25.656]
[1750985261646,0.82925,2410.8,2410.6,25.656]
[1750985261949,3.9053,2410.9,2410.6,28.37956102]
[1750985262137,3.9053,2410.9,2410.7,2.85864]
[1750985262337,3.9053,2410.9,2410.7,2.0294]
[1750985262646,3.2078,2410.9,2410.8,2.72356102]
[1750985262846,3.2078,2410.9,2410.8,4.06636102]
[1750985263048,3.2078,2410.9,2410.7,35.12156102]
[1750985263049,4.03699,2410.9,2410.7,35.12156102]
[1750985263245,4.03699,2410.9,2410.7,36.46436102]
[1750985263456,3.2078,2410.9,2410.7,36.46436102]
[1750985263942,3.2078,2410.9,2410.8,0.82923]
[1750985264148,3.2078,2410.9,2410.8,2.1348]
[1750985265051,3.2078,2410.9,2410.8,2.96403]
[1750985266545,4.03687,2411.3,2410.9,0.82917]
[1750985266747,3.2078,2411.3,2411.1,2.72356102]
[1750985267251,3.2078,2411.3,2411.2,1.4032]
[1750985268146,4.16378097,2411.3,2411.2,1.4032]
[1750985268342,4.99284097,2411.3,2411.2,1.4032]
[1750985268549,9.16378097,2411.3,2410.1,2.81044978]
[1750985268746,0.82926,2410.7,2410.5,0.675]
[1750985268946,0.82925,2410.8,2410.6,32.396]
[1750985269450,1.78526718,2410.7,2410.6,32.396]
[1750985269640,2.45656718,2410.7,2410.6,32.396]
[1750985270551,2.45656718,2410.7,2410.6,6.741]
[1750985270761,2.45656718,2410.7,2410.6,32.396]
[1750985272250,0.8293,2410.6,2410.3,2.0859]
[1750985272459,0.82936,2410.5,2410.4,32.395]
[1750985276454,0.82936,2410.5,2410.4,6.741]
[1750985276662,3.2078,2410.6,2410.2,49.781]
[1750985276860,4.0372,2410.3,2410.2,49.781]
[1750985277060,4.0372,2410.3,2410.2,83.6266]
[1750985277960,4.0372,2410.3,2410.2,56.522]
[1750985278158,4.0372,2410.3,2410.2,6.741]
[1750985278357,0.82951,2410.0,2409.8,2.1827]
[1750985278558,0.82951,2410.0,2409.9,33.8466]
[1750985278858,0.6883,2410.2,2409.9,36.57016102]
[1750985279257,0.82948,2410.1,2410.0,1.3601]
[1750985279560,1.51775,2410.2,2410.0,1.3601]
[1750985279762,1.51775,2410.2,2410.1,25.655]
[1750985280862,2.47381476,2410.2,2410.1,25.655]
[1750985281655,0.82954,2409.9,2409.8,0.7321]
[1750985281865,1.64436476,2410.2,2409.8,33.1281]
[1750985281866,4.03732,2410.0,2409.8,33.1281]
[1750985282163,3.2078,2410.0,2409.9,29.20810102]
[1750985282463,4.16378382,2410.0,2409.9,30.56430102]
[1750985282864,4.16378382,2410.0,2409.9,29.73476102]
[1750985283256,0.95598382,2410.0,2409.9,30.56430102]
[1750985283466,3.2078,2410.0,2409.8,0.7321]
[1750985283758,3.2078,2410.0,2409.9,32.396]
[1750985283759,4.0373,2410.0,2409.9,32.396]
[1750985283958,4.99325244,2410.0,2409.9,32.396]
[1750985284553,4.16375244,2410.0,2409.9,32.397]
[1750985284961,4.99325244,2410.0,2409.9,32.397]
[1750985286063,4.16375244,2410.0,2409.9,32.397]
[1750985286266,4.16375244,2410.0,2409.9,32.398]
[1750985286461,3.2078,2410.0,2409.9,32.398]
[1750985286770,3.2078,2410.0,2409.9,36.45436102]
[1750985286964,4.0373,2410.0,2409.9,33.7308]
[1750985287159,4.9927742,2410.0,2409.9,33.7308]
[1750985287559,4.9927742,2410.0,2409.9,33.7248]
[1750985288066,4.9927742,2410.0,2409.9,1.3328]
[1750985288266,4.9927742,2410.0,2409.9,33.7258]
[1750985288468,4.0373,2410.0,2409.9,33.7258]
[1750985289065,4.0373,2410.0,2409.9,1.3328]
[1750985289266,4.0373,2410.0,2409.9,33.7248]
[1750985290270,4.0373,2410.0,2409.9,32.392]
[1750985290567,4.99241621,2410.0,2409.9,32.392]
[1750985290768,4.0373,2410.0,2409.7,3.55316102]
[1750985290971,0.82954,2409.9,2409.8,32.392]
[1750985291470,4.03732,2410.0,2409.8,32.392]
[1750985291770,3.46216102,2410.3,2410.0,0.82949]
[1750985291771,4.03722,2410.3,2410.0,0.82949]
[1750985291971,0.82944,2410.2,2410.1,29.05286102]
[1750985292469,4.03722,2410.3,2410.1,29.05286102]
[1750985292666,0.82943,2410.2,2410.1,30.48396102]
[1750985293370,1.78483243,2410.2,2410.1,30.48396102]
[1750985295365,1.78483243,2410.2,2410.1,27.7604]
[1750985295565,1.78483243,2410.2,2410.1,25.655]
[1750985295964,1.78483243,2410.2,2410.1,28.37856102]
[1750985296162,1.78483243,2410.2,2410.1,29.85036102]
[1750985297265,0.95540243,2410.2,2410.1,29.85036102]
[1750985297467,1.78483243,2410.2,2410.1,29.85036102]
[1750985297672,1.78483243,2410.2,2410.1,30.57296102]
[1750985302875,1.78483243,2410.2,2410.1,27.8494]
[1750985303871,0.95540243,2410.2,2410.1,30.57296102]
[1750985304177,0.95540243,2410.2,2410.1,31.40243102]
[1750985304875,0.95540243,2410.2,2410.1,30.57296102]
[1750985305673,1.78483243,2410.2,2410.1,27.8494]
[1750985309476,4.99263243,2410.2,2410.1,27.8494]
[1750985310379,4.99263243,2410.2,2410.1,27.1268]
[1750985310979,4.16320243,2410.2,2410.0,25.644]
[1750985311279,1.78487243,2410.1,2410.0,25.644]
[1750985311474,2.49477243,2410.1,2410.0,25.644]
[1750985311982,12.11242447,2410.1,2409.6,2.48360567]
[1750985312280,0.82974,2409.3,2409.2,1.35918567]
[1750985312481,0.82979,2409.2,2409.0,2.0531]
[1750985312882,0.82979,2409.2,2409.0,27.6971]
[1750985313085,1.50449,2409.2,2409.0,27.6971]
[1750985313886,0.82981,2409.1,2409.0,27.6971]
[1750985314184,0.6747,2409.2,2409.0,27.6971]
[1750985314778,0.82981,2409.1,2409.0,27.6971]
[1750985314977,0.82981,2409.1,2409.0,0.6748]
[1750985315172,0.82981,2409.1,2409.0,25.646]
[1750985316679,0.6747,2409.2,2409.0,25.646]
[1750985317282,0.82983,2409.1,2409.0,25.646]
[1750985317482,1.80008861,2409.1,2409.0,25.646]
[1750985318577,0.97025861,2409.1,2409.0,25.646]
[1750985318780,0.97025861,2409.1,2409.0,34.71946102]
[1750985319085,5.67483587,2409.7,2409.4,0.8297]
[1750985319285,5.67483587,2409.7,2409.0,37.44302204]
[1750985319286,4.03741,2409.7,2409.6,2.72356102]
[1750985319486,4.17832872,2409.7,2409.6,9.45356102]
[1750985319687,4.17832872,2409.7,2409.6,10.80346102]
[1750985321791,5.00793872,2409.7,2409.6,10.80346102]
[1750985322991,4.17832872,2409.7,2409.6,10.80346102]
[1750985327189,4.17832872,2409.7,2409.6,11.63310102]
[1750985332689,4.17832872,2409.7,2409.6,10.80346102]
[1750985332890,4.17832872,2409.7,2409.6,11.63310102]
[1750985335495,3.2078,2410.1,2409.6,15.80346102]
[1750985335695,3.2078,2410.1,2410.0,2.72356102]
[1750985335897,3.2078,2410.1,2410.0,35.09256102]